Cogmind - Beta 12 @@@ ROGUE MODE // 2023.03.11 @ 13:23:58 Player: Fleshy Vegetable Bird Result: Destroyed by Y-54 Guardian with Flak Gun Performance ------------- Evolutions (3) 1500 Regions Visited (5) 1000 Robots Destroyed (97) 485 Value Destroyed (2347) 2347 Prototype IDs (13) 260 Alien Tech Used (0) 0 Bonus (38) 38 TOTAL SCORE: 5630 Bonus ------- High Alert Combat Kills 38 Cogmind --------- Core Integrity 0/700 Matter 265/300 Energy 300/300 System Corruption 1% Temperature Cool (0) Movement Rolling (125) Ox3 Location -7/Factory Parts ------- > --- POWER (1) -------- Enhanced Nuclear Core > --- PROPULSION (3) --- Wheel > --- UTILITY (7) ------ Large Storage Unit Melee Analysis Suite Melee Analysis Suite Target Analyzer Armor Integrity Analyzer Hacking Suite Hacking Suite > --- WEAPON (2) ------- Heavy Mace Power Maul > --- INVENTORY (15) --- High-capacity Storage Unit Advanced Terrain Scan Processor Armor Integrity Analyzer Actuator Array Improved Assault Rifle Minigun Grenade Launcher Concussive RPG (1) Heavy Mace Greatsword Peak State ------------ > --- POWER ------------ Light Nuclear Core > --- PROPULSION ------- Wheel Wheel Improved Airjet > --- UTILITY ---------- Large Storage Unit Improved Signal Interpreter Melee Analysis Suite Melee Analysis Suite Armor Integrity Analyzer Hardened Medium Armor Plating Hacking Suite > --- WEAPON ----------- Heavy Mace Makeshift Sword > --- INVENTORY -------- Light Nuclear Core Wheel Armored Wheel Huge Storage Unit Advanced Terrain Scan Processor Armor Integrity Analyzer Microactuators Actuator Array Improved Medium Armor Plating Hacking Suite Improved Assault Rifle Minigun Grenade Launcher Concussive RPG Heavy Mace [Rating: 41] Favorites ----------- Power Ion Engine Engine Ion Engine Power Core Light Nuclear Core Propulsion Wheel Treads Light Treads Wheel Wheel Hover Unit Improved Airjet Flight Unit Improved Flight Unit Utility Large Storage Unit Device Heat Sink Storage Large Storage Unit Processor Melee Analysis Suite Hackware Hacking Suite Protection Hardened Medium Armor Plating Weapon Minigun Energy Cannon Advanced Beam Cannon Ballistic Gun Minigun Launcher Grenade Launcher Impact Weapon Heavy Mace Slashing Weapon Makeshift Sword Build | -11 -10 -10 -9 -8 -7 ------- Run | Jun Mat Min Mat Mat Fac Slots Evolved 6 | . . . 2 2 2 Power . | . . . . . . Propulsion 1 | . . . . 1 . Utility 5 | . . . 2 1 2 Weapon . | . . . . . . Parts Attached 73 | 6 1 3 23 10 30 Power 12 | 1 . 1 4 1 5 Engine 7 | 1 . 1 4 1 . Core 5 | . . . . . 5 Reactor . | . . . . . . Propulsion 29 | 2 . 2 8 5 12 Treads 6 | . . . 4 2 . Leg . | . . . . . . Wheel 20 | 2 . 2 3 3 10 Hover 2 | . . . . . 2 Flight 1 | . . . 1 . . Utility 19 | 1 1 . 3 4 10 Device 5 | . . . 1 3 1 Storage 4 | 1 1 . 1 . 1 Processor 5 | . . . . . 5 Hackware 2 | . . . . 1 1 Protection 3 | . . . 1 . 2 Artifact . | . . . . . . Weapon 13 | 2 . . 8 . 3 Energy Gun . | . . . . . . Energy Cannon 1 | . . . 1 . . Ballistic Gun 8 | 2 . . 6 . . Ballistic Cannon . | . . . . . . Launcher 1 | . . . 1 . . Special Weapon . | . . . . . . Impact Weapon 2 | . . . . . 2 Slashing Weapon 1 | . . . . . 1 Piercing Weapon . | . . . . . . Special Melee Weapon . | . . . . . . Unidentified Prototypes 7 | . . . 4 . 3 Parts Lost 25 | . . 3 6 . 16 Power 6 | . . 1 2 . 3 Propulsion 12 | . . 2 2 . 8 Utility 4 | . . . . . 4 Weapon 3 | . . . 2 . 1 Highest Loss Streak 4 | . . 1 4 . 3 To Critical Strikes . | . . . . . . Average Slot Usage (%) 86 | . 85 82 76 100 93 Engine 7 | . 14 13 10 9 1 Core 2 | . . . . . 5 Treads 6 | . . . 16 11 . Wheel 15 | . 28 25 4 15 18 Device 5 | . . . 8 18 1 Storage 9 | . 14 14 11 9 7 Processor 10 | . . . . . 27 Hackware 3 | . . . . 9 7 Protection 4 | . . . 2 9 5 Ballistic Gun 14 | . 28 28 20 18 2 Impact Weapon 2 | . . . . . 6 Slashing Weapon 2 | . . . . . 5 Naked Turns . | . . . . . . Heaviest Build 44 | 12 27 27 43 44 43 Greatest Support 40 | 20 20 20 40 30 32 Greatest Overweight (x) 4 | 3 1 2 3 4 3 Average Overweight (x) 1 | . . 1 . 2 1 Largest Inventory Capacity 15 | 8 15 15 15 15 15 Average Capacity 14 | 7 8 15 15 15 15 Most Carried 15 | 6 9 11 15 15 15 Average Carried 12 | 3 7 9 12 14 14 Final Capacity 15 | 8 15 15 15 15 15 Final Carried 15 | 6 9 10 15 15 11 Class Distribution -------------------- 77% | Mutant 22% | Scavenger-Mutant Dominant Class ---------------- Mutant | -10/Materials Mutant | -10/Mines Mutant | -9/Materials Scavenger-Mutant | -8/Materials Mutant | -7/Factory Resources | -11 -10 -10 -9 -8 -7 ----------- Run | Jun Mat Min Mat Mat Fac Matter Collected 1759 | 225 58 116 707 272 381 Remotely . | . . . . . . Salvage Created 3482 | 78 147 173 1348 444 1292 Parts 191 | 4 7 12 89 25 54 Haulers Intercepted 8 | . 1 . 4 1 2 Recyclers Shooed 2 | . . . 1 . 1 Parts Field Recycled . | . . . . . . Retrieved Matter . | . . . . . . Parts Self-Destructed . | . . . . . . Prevented . | . . . . . . Kills | -11 -10 -10 -9 -8 -7 ------- Run | Jun Mat Min Mat Mat Fac Combat Hostiles Destroyed 61 | . 2 5 31 5 18 Melee 11 | . . . . . 11 Guns 38 | . 2 5 23 5 3 Cannons 2 | . . . 2 . . AOE 6 | . . . 6 . . Classes Destroyed 13 | 2 3 2 3 . 3 Worker 14 | . . 2 2 1 9 Builder 3 | . . . 2 . 1 Tunneler 1 | 1 . . . . . Hauler 8 | . 1 . 4 1 2 Recycler 5 | 1 . . . 1 3 Operator 4 | . 1 . 2 1 . Watcher 1 | . . . . . 1 Swarmer 16 | . . 3 8 . 5 Grunt 30 | . 2 2 16 3 7 Brawler 1 | . . . 1 . . Sentry 9 | . . . 6 2 1 Hunter 3 | . . . . . 3 Programmer 2 | . . . . . 2 Best Kill Streak 11 | 2 2 2 9 3 11 Combat Bots Only 7 | . 2 2 7 3 5 Max Kills in Single Turn 4 | 1 1 1 4 1 1 Gunslinging 1 | . . . 1 . . Exploded 3 | . . . 3 . . Melee 1 | . . . . . 1 Uniques/NPCs Destroyed . | . . . . . . Combat | -11 -10 -10 -9 -8 -7 -------- Run | Jun Mat Min Mat Mat Fac Damage Taken 4112 | . 86 280 1208 193 2345 Core 1071 | . 21 40 302 7 701 Absorbed by Shields 8 | . . . . . 8 Regen/Repaired (Parts) 114 | . . . . . 114 Core Remaining (%) 74 | 100 . 75 24 98 . Volleys Fired 213 | 13 19 25 114 23 19 Largest 2 | 2 2 2 2 2 2 Hottest 91 | 40 40 40 91 50 50 Shots Fired 406 | 26 38 50 209 46 37 Gun 384 | 26 38 50 187 46 37 Cannon 17 | . . . 17 . . Launcher 5 | . . . 5 . . Special . | . . . . . . Kinetic 384 | 26 38 50 187 46 37 Thermal 17 | . . . 17 . . Explosive 5 | . . . 5 . . Electromagnetic . | . . . . . . Robot Hit Streak 13 | 5 7 11 13 12 8 Robot Miss Streak 4 | 2 1 3 4 2 2 Penetration Max . | . . . . . . Secondary Targets 2 | . . . 2 . . Max Gunslinging Chain 1 | . . . 1 . . Shots Hit Robots 366 | 17 29 31 149 33 107 Core Hits 136 | 4 9 16 67 14 26 Critical Kills 2 | . . . . . 2 Critical Parts Destroyed 8 | . . . 1 1 6 Critical Strikes 19 | . . . 1 1 17 Destroy 3 | . . . 1 1 1 Smash 9 | . . . . . 9 Sever 7 | . . . . . 7 Melee Attacks 118 | . . . . . 118 Impact 32 | . . . . . 32 Slashing 86 | . . . . . 86 Piercing . | . . . . . . Sneak Attacks 18 | . . . . . 18 Combat Hostiles 1 | . . . . . 1 Follow-up Attacks 10 | . . . . . 10 Damage Inflicted 8109 | 144 235 244 2497 561 4428 Guns 3362 | 144 235 244 1793 561 385 Cannons 227 | . . . 227 . . Explosions 477 | . . . 477 . . Melee 4043 | . . . . . 4043 Ramming . | . . . . . . Kinetic 3362 | 144 235 244 1793 561 385 Thermal 227 | . . . 227 . . Explosive 477 | . . . 477 . . Electromagnetic . | . . . . . . Impact 1329 | . . . . . 1329 Slashing 2714 | . . . . . 2714 Piercing . | . . . . . . Highest Corruption 1 | . . . . . 1 Average Corruption 1 | . . . . . 1 Corruption Purged . | . . . . . . Corruption Blocked . | . . . . . . Effects 3 | . . . . . 3 Matter Fused 1 | . . . . . 1 Parts Rejected 1 | . . . . . 1 Data Loss (minor) 1 | . . . . . 1 Overload Shots . | . . . . . . Overflow Damage 861 | . . . . . 861 Projectiles . | . . . . . . Explosions . | . . . . . . Melee 861 | . . . . . 861 Knockbacks 6 | . . . . . 6 Impact 6 | . . . . . 6 Kinetic . | . . . . . . Secondary . | . . . . . . Self-Inflicted Damage . | . . . . . . Shots . | . . . . . . Rammed . | . . . . . . Targets Rammed . | . . . . . . Kicked . | . . . . . . Crushed . | . . . . . . Highest Temperature 245 | . 12 13 245 29 4 Average Temperature 57 | . 7 7 89 10 2 Received Heat Transfer 1209 | . 48 75 555 72 459 Siege Activations . | . . . . . . Robots Corrupted . | . . . . . . Combat Hostiles . | . . . . . . Parts Fried 8 | . . . . . 8 Impact Corruptions 19 | . . . . . 19 Robots Melted . | . . . . . . Combat Hostiles . | . . . . . . Parts Melted . | . . . . . . Heat Transferred 407 | . . . 407 . . Parts Sabotaged . | . . . . . . Parts Stolen . | . . . . . . Parts Stripped . | . . . . . . Power Chain Reactions . | . . . . . . Missiles Intercepted . | . . . . . . Alert | -11 -10 -10 -9 -8 -7 ------- Run | Jun Mat Min Mat Mat Fac Peak Influence 474 | 10 139 194 474 339 313 Initial 186 | . 6 54 1 186 107 Average 196 | 3 80 110 336 235 125 Maximum Alert Level 2 | . . . 2 1 1 Low Security (%) 54 | 100 100 100 10 25 75 Level 1 31 | . . . 43 74 24 Level 2 14 | . . . 46 . . Level 3 . | . . . . . . Level 4 . | . . . . . . Level 5 . | . . . . . . High Security . | . . . . . . Max Security . | . . . . . . Squads Dispatched 18 | . 3 . 3 2 10 Investigation 4 | . 2 . . 1 1 Extermination 4 | . . . . . 4 Reinforcement 9 | . 1 . 3 1 4 Assault . | . . . . . . Garrison 1 | . . . . . 1 Intercept . | . . . . . . Searches Triggered . | . . . . . . Construction Impeded . | . . . . . . Haulers Reinforced 2 | . . . . . 2 Active Scanning Responses . | . . . . . . Cargo Convoy Interrupts . | . . . . . . Stealth | -11 -10 -10 -9 -8 -7 --------- Run | Jun Mat Min Mat Mat Fac Distress Signals 6 | . . . 5 1 . Communications Jammed . | . . . . . . Distress Signals . | . . . . . . Times Spotted 105 | . 6 7 48 13 31 Peak Tracking Total 8 | . 2 3 8 6 4 Tactical Retreats 9 | . . 2 1 1 5 Traps | -11 -10 -10 -9 -8 -7 ------- Run | Jun Mat Min Mat Mat Fac Traps Triggered 6 | . 1 . 1 1 3 Indirectly . | . . . . . . Trap Hack Attempts . | . . . . . . Triggered . | . . . . . . Disarmed . | . . . . . . Reprogrammed . | . . . . . . Reused . | . . . . . . Traps Extracted . | . . . . . . Installed . | . . . . . . Triggered 1 | . . . . . 1 Machines | -11 -10 -10 -9 -8 -7 ---------- Run | Jun Mat Min Mat Mat Fac Machines Disabled 3 | . . . 3 . . Max in Single Turn 1 | . . . 1 . . Garrison Access 1 | . . . . 1 . Machines Repaired . | . . . . . . Machines Sabotaged . | . . . . . . Overloaded Fab Kills . | . . . . . . Hacking | -11 -10 -10 -9 -8 -7 --------- Run | Jun Mat Min Mat Mat Fac Machines Accessed 29 | . 2 . 8 3 16 Terminals 22 | . 2 . 7 2 11 Fabricators 1 | . . . . . 1 Repair Stations 2 | . . . . . 2 Recycling Units . | . . . . . . Scanalyzers 2 | . . . 1 . 1 Garrison Access 2 | . . . . 1 1 Total Hacks 77 | . 5 . 26 9 37 Successful 41 | . 2 . 15 6 18 Failed 36 | . 3 . 11 3 19 Catastrophic 3 | . 1 . . . 2 Database Lockouts . | . . . . . . Manual 41 | . 3 . 13 6 19 Terminals 63 | . 5 . 20 8 30 Fabricators 1 | . . . . . 1 Repair Stations 4 | . . . . . 4 Recycling Units . | . . . . . . Scanalyzers 7 | . . . 6 . 1 Garrison Access 2 | . . . . 1 1 Terminal Hacks 18 | . . . 5 3 10 Record 2 | . . . 2 . . Part Schematic 1 | . . . . . 1 Robot Analysis 1 | . . . 1 . . Prototype ID Bank 3 | . . . 1 1 1 Open DSF 3 | . . . . . 3 Terminal Index 2 | . . . 1 . 1 Recycling Unit Index 1 | . . . . . 1 Unreport Threat 1 | . . . . . 1 Locate Traps 1 | . . . . 1 . Recall Extermination 1 | . . . . . 1 Recall Reinforcements 1 | . . . . 1 . Registered Prototypes 1 | . . . . . 1 Fabricator Hacks . | . . . . . . Repair Station Hacks 4 | . . . . . 4 Scan Component 2 | . . . . . 2 Repair 2 | . . . . . 2 Recycling Unit Hacks . | . . . . . . Scanalyzer 6 | . . . 6 . . Insert Component 3 | . . . 3 . . Analyze 3 | . . . 3 . . Garrison Access Hacks 1 | . . . . 1 . Seal Access 1 | . . . . 1 . Unauthorized Hacks 12 | . 2 . 4 2 4 Terminals 12 | . 2 . 4 2 4 Track 3 | . . . 1 1 1 Botnet 8 | . 1 . 3 1 3 Operators 1 | . 1 . . . . Fabricators . | . . . . . . Repair Stations . | . . . . . . Recycling Units . | . . . . . . Scanalyzers . | . . . . . . Garrison Access . | . . . . . . Data Cores Recovered . | . . . . . . Used . | . . . . . . Hacking Detections 23 | . 2 . 8 2 11 Full Trace Events 2 | . 1 . . . 1 Feedback Events . | . . . . . . Feedback Blocked . | . . . . . . Robot Schematics Acquired . | . . . . . . Robots Built . | . . . . . . Authchips . | . . . . . . Time . | . . . . . . Total Robot Build Rating . | . . . . . . Part Schematics Acquired 4 | . . . 3 . 1 Parts Built . | . . . . . . Authchips . | . . . . . . Time . | . . . . . . Total Part Build Rating . | . . . . . . Parts Repaired 2 | . . . . . 2 Time 51 | . . . . . 51 Parts Recycled . | . . . . . . Recycled Matter . | . . . . . . Retrieved Matter . | . . . . . . Retrieved Components . | . . . . . . Parts Scanalyzed 3 | . . . 3 . . Part Schematics Acquired 3 | . . . 3 . . Parts Damaged 1 | . . . 1 . . Bothacking | -11 -10 -10 -9 -8 -7 ------------ Run | Jun Mat Min Mat Mat Fac Used RIF Installer . | . . . . . . Robots Hacked . | . . . . . . Non-combat . | . . . . . . Combat . | . . . . . . Robot Hacks Applied . | . . . . . . Relay Couplers Released 3 | . . . . . 3 Programmers 3 | . . . . . 3 Fabnet Peak Effective % . | . . . . . . Robots Rewired . | . . . . . . Allies Hacked . | . . . . . . Hacks Repelled . | . . . . . . Allies | -11 -10 -10 -9 -8 -7 -------- Run | Jun Mat Min Mat Mat Fac Total Allies . | . . . . . . Largest Group . | . . . . . . Highest-Rated Group . | . . . . . . Highest-Rated Ally . | . . . . . . Total Orders . | . . . . . . Ally Attacks . | . . . . . . Total Damage . | . . . . . . Kills . | . . . . . . Allies Corrupted . | . . . . . . Allies Melted . | . . . . . . Intel | -11 -10 -10 -9 -8 -7 ------- Run | Jun Mat Min Mat Mat Fac Robot Analysis Total 1 | . . . 1 . . Derelict Logs Recovered 1 | . . 1 . . . Drone Launches . | . . . . . . Drone Recoveries . | . . . . . . Exploration | -11 -10 -10 -9 -8 -7 ------------- Run | Jun Mat Min Mat Mat Fac Turns Passed 4652 | 91 387 435 1457 513 1769 Spaces Moved 2976 | 46 292 357 656 340 1285 Core 12 | 12 . . . . . Treads 431 | . . . 431 . . Legs . | . . . . . . Wheels 2533 | 34 292 357 225 340 1285 Hover . | . . . . . . Flight . | . . . . . . Fastest Speed 50 | 50 80 95 95 95 83 Average Speed 112 | 85 80 97 155 118 100 Slowest Speed 240 | 200 95 110 240 140 135 Overloaded Moves . | . . . . . . Propulsion Burnouts . | . . . . . . Robots Hopped . | . . . . . . Cave-ins Triggered . | . . . . . . Exploration Rate (%) 41 | 4 44 80 58 29 36 Regions Visited 5 Branch Regions 1 Pre-discovered Areas 1 | . . 1 . . . Known Exits Taken . | . . . . . . Unknown Exits Taken 5 | 1 1 1 1 1 . Scrap Searched 1 | . . 1 . . . Spaces Dug 14 | . . . . . 14 Terrain Destroyed 25 | . . . 11 . 14 Melee 14 | . . . . . 14 Projectile . | . . . . . . AOE 11 | . . . 11 . . Terrain Rammed . | . . . . . . Walls Destroyed . | . . . . . . Machines Disabled . | . . . . . . Actions | -11 -10 -10 -9 -8 -7 --------- Run | Jun Mat Min Mat Mat Fac Total 3841 | 76 412 404 907 417 1625 Wait 324 | . 96 14 76 18 120 Move 2971 | 45 291 356 655 339 1285 Hop . | . . . . . . Pick Up 95 | 12 4 5 27 15 32 Fast Attach . | . . . . . . Attach 56 | 6 1 3 14 6 26 Detach . | . . . . . . Swap 17 | . . . 9 4 4 Drop 44 | . 1 1 12 12 18 Fire 213 | 13 19 25 114 23 19 Melee 105 | . . . . . 105 Ram . | . . . . . . Kick . | . . . . . . Crush . | . . . . . . Escape Stasis 16 | . . . . . 16 Rewire . | . . . . . . Trap . | . . . . . . Miscellaneous . | . . . . . . Route ------- -11/Junkyard -10/Materials (discovered 2 exits: *Mat / [*Min]) -10/Mines (discovered 3 exits: *Mat x2 / [*Exi]) -9/Materials (discovered 3 exits: *Mat x2 / [*Min]) -8/Materials -7/Factory (discovered 2 exits: *Sto x2) History --------- Turn | Location | Event 33 | -11/Junkyard | Discovered new exit (range 15) 92 | -11/Junkyard | Entered Materials 166 | -10/Materials | Discovered new exit (range 13) 302 | -10/Materials | Build established: Mutant 445 | -10/Materials | Discovered new exit (range 15) 479 | -10/Materials | Entered Mines 554 | -10/Mines | Discovered new exit (range 5) 607 | -10/Mines | A weapon hastily lodged in a ceiling crevice suddenly fell to the ground 777 | -10/Mines | Deemed a non-threat by the Exiles lab entrance 777 | -10/Mines | Discovered new exit (range 5) 810 | -10/Mines | Discovered new exit (range 5) 816 | -10/Mines | Learned location of Zion (-7) 914 | -10/Mines | Entered Materials 914 | -9/Materials | Evolved 2 slots: Utility x2 1041 | -9/Materials | Discovered new exit (range 16) 1083 | -9/Materials | Destroyed 7 combat bots 1297 | -9/Materials | Lost 4 parts (1p2n1w) 1343 | -9/Materials | Discovered new exit (range 8) 1614 | -9/Materials | Core integrity fell below 50% 1862 | -9/Materials | Discovered new exit (range 7) 2371 | -9/Materials | Entered another Materials area 2371 | -8/Materials | Evolved 2 slots: Propulsion x1, Utility x1 2660 | -8/Materials | Build established: Scavenger-Mutant 2792 | -8/Materials | Discovered new exit (range 3) 2884 | -8/Materials | Entered Factory 2884 | -7/Factory | Evolved 2 slots: Utility x2 2927 | -7/Factory | Discovered new exit (range 16) 3020 | -7/Factory | Identified exit to Storage 3085 | -7/Factory | Repaired Hrd. Medium Armor Plating 3375 | -7/Factory | Build established: Mutant 3415 | -7/Factory | Garrison activated, responded to threat 3559 | -7/Factory | Discovered exit to Storage (range 15) 3602 | -7/Factory | Repaired Wheel? 4052 | -7/Factory | Lost 3 parts (2n1u) 4164 | -7/Factory | Core integrity fell below 50% 4480 | -7/Factory | Lost 3 parts (1p1u1w) 4522 | -7/Factory | Core integrity fell below 20% 4552 | -7/Factory | Lost 3 parts (2n1u) 4653 | -7/Factory | Destroyed by Y-54 Guardian with Flak Gun Last Messages --------------- 04553_ Acquired Hcp. Storage Unit. 04555_ O-24 Administrator: "IFF HANDSHAKE FAILED. SECURING TERMINAL." 04560_ O-24 Administrator uses terminal to summon reinforcements. 04560_ ALERT: Hostiles spotted, dispatching reinforcements to Terminal F002. 04560_ O-24 Administrator locks terminal. 04573_ Wheel destroyed. 04589_ G-47 Trooper destroyed. 04592_ G-47 Trooper suffers critical hit (Smash). 04592_ G-47 Trooper destroyed. 04634_ ALERT: Rogue bot located, Programmers report to Factory Zone 3W. 04635_ Connecting with Terminal... 04635_ Discarded Imp. Signal Interpreter. 04636_ Connecting with Terminal... 04644_ Y-54 Guardian suffers critical hit (Smash). 04644_ Destroyed Gatling Laser. 04644_ Y-54 Guardian system corrupted by crushing effect. 04644_ Hvy. Mace follow-up attack on Y-54 Guardian. 04650_ Y-54 Guardian suffers critical hit (Smash). 04651_ Y-54 Guardian misfires. Map ----- +----------------------------------------------------+ | | | | | | | | | | | | | | | | | | | | | | | | | | | | | | | | | | | | | ??????????????????############????????????????? | | ?????????????????? #????????????????? | | ?????????????????# """" [ "" #????????????????? | | ?????????????????# """" "" #????????????????? | | ?????????????????# """" T" #????##########??? | | ?????????????????# """" "" #????# #??? | | ?????????????????# "" #????# """ [#??? | | ?????????????????# @ #????# """ #??? | | ?????????????????######Y###+####### """ #??? | | ?????????????????????# + #??? | | ?????????????????????# ########## **] #??? | | ????????????????????? #????????# **] #??? | | ????????????????????## #????????# *]= #??? | | ?????????????????????# #????????# #??? | | ????????????????????? ????????#####+####??? | | ????????????????????? ########## #???? | | ????????????????????? ##### | | ????????????????????? | | ???????????????????? ! ##### | | ???????????????????? ########## ## | | ???????????????????? ?????????### #### | | ????????????????????#######????######## #??#= | | ?????????????????????????????# #??# | | ???????????????????????????????########+#### | | ???????????????????????????????# ! +=* | | ???????????????????????????????+ #[*% | | ???????????????????????????????# ! ##+# | | ???????????????????????????????# ##%# | | ???????????????????????????????# ] ## # | | ???????????????????????????????############## # | | ????????????????????????????????????????????# # | | ????????????????????????????????????????????# # | +----------------------------------------------------+ Best States ------------- Heat Dissipation 48 Energy Generation 17 Energy Capacity 300 Matter Stores 300 Matter Capacity 300 Sight Range 16 Terrain Scan Range 16 Terrain Scan Density 10 Armor Coverage 225 Melee Speed Boost 20 Evasion (%) 50 Melee Accuracy 10 Target Analysis 5 Armor Integrity Analysis 30 Recoil Reduction 2 Offensive Hacking 20 Item Schematics ----------------- Hacking Suite | -9/Materials | Scanalyzed Mak. Sword | -9/Materials | Scanalyzed Wheel | -9/Materials | Scanalyzed Adv. Signal Interpreter | -7/Factory | Hacked Robot Schematics ------------------ None Fabricated ------------ Nothing Alien Tech Used ----------------- None Achievements -------------- None Challenges ------------ None Game ------ Seed MassHardlightSubcomponent Manual? 0 Play Time 00:45:27 Cumulative 319.2 hours Start 2023.03.11 @ 12:37:50 End 2023.03.11 @ 13:23:58 Sessions 1 Manual Loads 0 Difficulty Rogue Special Mode None Game No. 359 Rogue 359 Adventurer 0 Explorer 0 Win Type - Total 6 Types 3/1/1/1/0/0/0/0/0 Lore% 63 Gallery% 78 Achievement% 66 Wizard Run 0 Options --------- ASCII 0 Keyboard 0 Movement Numpad Keybinds 0 Fullscreen 1 Font 16/Terminus Map View 75x55 Tactical HUD 1 Map Filters NONE Filters NONE Steam 1 RUN: 27a7aed1-97fc-4429-9f36-24cdc206ae32